Cogmind - Beta 15 @@@ ROGUE MODE // 2025.07.07 @ 15:37:03 Player: beans Result: Destroyed by as-37807 with Assembled Blade Performance ------------- Evolutions (0) 0 Regions Visited (4) 800 Robots Destroyed (11) 55 Value Destroyed (163) 163 Prototype IDs (23) 460 Alien Tech Used (0) 0 Bonus (276) 276 TOTAL SCORE: 1754 Bonus ------- Aligned with FarCom 300 Friendly Fire -24 Cogmind --------- Core Integrity 0/250 Matter 294/300 Energy 85/100 System Corruption 5% Temperature Cool (0) Movement Core (50) Location -9/Mines Parts ------- > --- POWER (1) -------- (None) > --- PROPULSION (2) --- (None) > --- UTILITY (2) ------ (None) > --- WEAPON (2) ------- Longsword +1 > --- INVENTORY (5) ---- Medium Matter Pod (0) Medium Matter Pod (0) Light Assault Rifle Peak State ------------ > --- POWER ------------ Ion Engine > --- PROPULSION ------- Light Treads Light Treads > --- UTILITY ---------- Medium Matter Pod > --- WEAPON ----------- Light Assault Rifle Field Lobotomy Kit > --- INVENTORY -------- Medium Matter Pod Medium Matter Pod Assault Rifle Grenade Launcher [Rating: 15] Favorites ----------- Power Ion Engine Engine Ion Engine Propulsion Light Treads Treads Light Treads Wheel Compact Wheel Utility Medium Matter Pod Storage Medium Matter Pod Weapon Longsword +1 Energy Cannon Particle Cannon Ballistic Gun Light Assault Rifle Launcher Grenade Launcher Special Weapon Field Lobotomy Kit Slashing Weapon Longsword +1 Build | -11 -10 -10 -10 -9 ------- Run | Yrd Mat Min Exi Min Slots Evolved . | . . . . . Power . | . . . . . Propulsion . | . . . . . Utility . | . . . . . Weapon . | . . . . . Parts Attached 12 | 5 1 . 4 2 Power 1 | 1 . . . . Engine 1 | 1 . . . . Core . | . . . . . Reactor . | . . . . . Propulsion 3 | 2 . . . 1 Treads 2 | 2 . . . . Leg . | . . . . . Wheel 1 | . . . . 1 Hover . | . . . . . Flight . | . . . . . Utility 2 | . . . 2 . Device . | . . . . . Storage 2 | . . . 2 . Processor . | . . . . . Hackware . | . . . . . Protection . | . . . . . Artifact . | . . . . . Weapon 6 | 2 1 . 2 1 Energy Gun . | . . . . . Energy Cannon 1 | . . . . 1 Ballistic Gun 2 | 2 . . . . Ballistic Cannon . | . . . . . Launcher 1 | . 1 . . . Special Weapon 1 | . . . 1 . Impact Weapon . | . . . . . Slashing Weapon 1 | . . . 1 . Piercing Weapon . | . . . . . Special Melee Weapon . | . . . . . Unidentified Prototypes . | . . . . . Parts Lost 6 | . . . . 6 Power 1 | . . . . 1 Propulsion 3 | . . . . 3 Utility 1 | . . . . 1 Weapon 1 | . . . . 1 Highest Loss Streak 5 | . . . . 5 To Critical Strikes 1 | . . . . 1 Average Backups 3 | . . 4 4 4 Power . | . . . . . Propulsion . | . . . . . Utility 1 | . . 3 2 2 Weapon 2 | . . 1 2 2 Tool/Special . | . . . . . Unused Backups 2 | . . . . 2 Power . | . . . . . Propulsion . | . . . . . Utility 2 | . . . . 2 Weapon . | . . . . . Tool/Special . | . . . . . Average Slot Usage (%) 72 | . 71 71 71 75 Engine 13 | . 14 14 14 13 Treads 25 | . 28 28 28 15 Wheel 2 | . . . . 10 Storage 8 | . . . 10 14 Energy Cannon 1 | . . . . 6 Ballistic Gun 6 | . 17 14 4 1 Launcher 4 | . 10 14 4 . Slashing Weapon 8 | . . . 9 12 Peak Build Rating 15 | 5 5 5 15 14 Average Rating 9 | 3 5 5 9 12 On Entrance 5 | . 5 5 5 12 Naked Turns . | . . . . . Heaviest Build 16 | 8 9 9 14 16 Greatest Support 40 | 40 40 40 40 40 Greatest Overweight (x) . | . . . . . Average Overweight (x) . | . . . . . Largest Inventory Capacity 5 | 5 5 5 5 5 Average Capacity 5 | 5 5 5 5 5 Most Carried 5 | 2 4 4 5 5 Average Carried 3 | . . 4 4 4 Final Capacity 5 | 5 5 5 5 5 Final Carried 5 | . 4 4 5 3 Class Distribution -------------------- 100% | Mutant Dominant Class ---------------- Mutant | -10/Materials Mutant | -10/Mines Mutant | -10/Exiles Mutant | -9/Mines Resources | -11 -10 -10 -10 -9 ----------- Run | Yrd Mat Min Exi Min Matter Collected 571 | 113 66 . 200 192 Remotely . | . . . . . Salvage Created 392 | . 110 . . 282 Parts 23 | . 6 . . 17 Haulers Intercepted . | . . . . . Recyclers Shooed . | . . . . . Parts Field Recycled . | . . . . . Retrieved Matter . | . . . . . Parts Self-Destructed . | . . . . . Prevented . | . . . . . Kills | -11 -10 -10 -10 -9 ------- Run | Yrd Mat Min Exi Min Combat Hostiles Destroyed 17 | . 3 . . 14 Melee 7 | . . . . 7 Cannons 1 | . . . . 1 AOE 9 | . 3 . . 6 Classes Destroyed 5 | . 3 . . 2 Tunneler 2 | . . . . 2 Recycler 3 | . 1 . . 2 Swarmer 4 | . 1 . . 3 Grunt 2 | . 2 . . . Assembled 11 | . . . . 11 Best Kill Streak 11 | . 3 . . 11 Combat Bots Only 11 | . 2 . . 11 Max Kills in Single Turn 3 | . 1 . . 3 Gunslinging . | . . . . . Exploded 3 | . 1 . . 3 Melee 1 | . . . . 1 Uniques/NPCs Destroyed . | . . . . . Combat | -11 -10 -10 -10 -9 -------- Run | Yrd Mat Min Exi Min Hostile Shots Fired 54 | . 17 . . 37 Missed 18 | . 8 . . 10 Hits 36 | . 9 . . 27 Melee 14 | . . . . 14 Projectile 22 | . 9 . . 13 Critical Strikes 4 | . . . . 4 Damage Taken 816 | . 221 . . 595 Core 266 | . 37 . . 229 Absorbed by Shields . | . . . . . Core Remaining (%) 100 | 100 . . . . Volleys Fired 17 | . 12 . . 5 Largest 2 | . 2 . . 2 Hottest 88 | . 50 . . 88 Shots Fired 27 | . 19 . . 8 Gun 15 | . 12 . . 3 Cannon 2 | . . . . 2 Launcher 10 | . 7 . . 3 Special . | . . . . . Kinetic 15 | . 12 . . 3 Thermal 2 | . . . . 2 Explosive 10 | . 7 . . 3 Electromagnetic . | . . . . . Robot Hit Streak 5 | . 5 . . 4 Robot Miss Streak 2 | . 1 . . 2 Penetration Max . | . . . . . Secondary Targets . | . . . . . Shots Hit Robots 23 | . 6 . . 17 Core Hits 31 | . 11 . . 20 Critical Kills . | . . . . . Critical Parts Destroyed . | . . . . . Critical Strikes . | . . . . . Melee Attacks 15 | . . . . 15 Impact . | . . . . . Slashing 15 | . . . . 15 Piercing . | . . . . . Sneak Attacks 5 | . . . . 5 Combat Hostiles 1 | . . . . 1 Follow-up Attacks . | . . . . . Damage Inflicted 1833 | . 489 . . 1344 Guns 48 | . 48 . . . Cannons 21 | . . . . 21 Explosions 914 | . 441 . . 473 Melee 850 | . . . . 850 Ramming . | . . . . . Kinetic 48 | . 48 . . . Thermal 29 | . 8 . . 21 Explosive 906 | . 433 . . 473 Electromagnetic . | . . . . . Impact . | . . . . . Slashing 850 | . . . . 850 Piercing . | . . . . . Highest Corruption 5 | . . . . 5 Average Corruption 3 | . . . . 3 Corruption Purged . | . . . . . Corruption Blocked . | . . . . . Effects 1 | . . . . 1 Matter Fused 1 | . . . . 1 Overload Shots . | . . . . . Overflow Damage 261 | . . . . 261 Projectiles . | . . . . . Explosions 39 | . . . . 39 Melee 222 | . . . . 222 Knockbacks . | . . . . . Impact . | . . . . . Kinetic . | . . . . . Secondary . | . . . . . Self-Inflicted Damage 101 | . 101 . . . Shots 1 | . 1 . . . Rammed . | . . . . . Targets Rammed . | . . . . . Kicked . | . . . . . Crushed . | . . . . . Highest Temperature 54 | . 20 . . 54 Average Temperature 15 | . 9 . . 23 Received Heat Transfer 27 | . 27 . . . Siege Activations . | . . . . . Martial Activations . | . . . . . Shielding Activations . | . . . . . Robots Disrupted . | . . . . . Combat Hostiles . | . . . . . Robots Corrupted . | . . . . . Combat Hostiles . | . . . . . Parts Fried . | . . . . . Impact Corruptions . | . . . . . Robots Melted . | . . . . . Combat Hostiles . | . . . . . Parts Melted . | . . . . . Heat Transferred 49 | . 12 . . 37 Parts Sabotaged . | . . . . . Parts Stolen . | . . . . . Parts Stripped . | . . . . . Power Chain Reactions . | . . . . . Alert | -11 -10 -10 -10 -9 ------- Run | Yrd Mat Min Exi Min Maximum Alert Level . | . . . . . Low Security (%) 100 | 100 100 100 . 100 Level 1 . | . . . . . Level 2 . | . . . . . Level 3 . | . . . . . Level 4 . | . . . . . Level 5 . | . . . . . High Security . | . . . . . Max Security . | . . . . . Peak Influence 75 | . 75 17 . 60 Initial 17 | . . 17 . . Average 25 | . 38 14 . 22 Influence Increases 230 | . 125 . . 105 Destroy 0b10 Robot/C 120 | . 60 . . 60 Destroy 0b10 Robot/NC 25 | . 5 . . 20 Destroy Leader 20 | . 10 . . 10 Disable Machine 15 | . 15 . . . Destroy Structure 50 | . 35 . . 15 Influence Decreases 230 | . 80 38 7 105 Entered New Map 35 | . . 28 7 . Time Decay 176 | . 80 10 . 86 Lost Part 19 | . . . . 19 Squads Dispatched 2 | . 2 . . . Investigation 1 | . 1 . . . Extermination . | . . . . . Reinforcement 1 | . 1 . . . Assault . | . . . . . Garrison . | . . . . . Intercept . | . . . . . Searches Triggered . | . . . . . Construction Impeded . | . . . . . Haulers Reinforced . | . . . . . Active Scanning Responses . | . . . . . Cargo Convoy Interrupts . | . . . . . Stealth | -11 -10 -10 -10 -9 --------- Run | Yrd Mat Min Exi Min Distress Signals . | . . . . . Communications Jammed . | . . . . . Distress Signals . | . . . . . Times Spotted 27 | . 8 . . 19 Peak Tracking Total 13 | . 5 . . 13 Tactical Retreats . | . . . . . Traps | -11 -10 -10 -10 -9 ------- Run | Yrd Mat Min Exi Min Traps Triggered 1 | . 1 . . . Indirectly . | . . . . . Trap Hack Attempts . | . . . . . Triggered . | . . . . . Disarmed . | . . . . . Reprogrammed . | . . . . . Reused . | . . . . . Traps Extracted . | . . . . . Installed . | . . . . . Triggered . | . . . . . Machines | -11 -10 -10 -10 -9 ---------- Run | Yrd Mat Min Exi Min Machines Disabled 1 | . 1 . . . Max in Single Turn 1 | . 1 . . . Machines Repaired . | . . . . . Machines Dismantled . | . . . . . Machines Sabotaged . | . . . . . Overloaded Fab Kills . | . . . . . Hacking | -11 -10 -10 -10 -9 --------- Run | Yrd Mat Min Exi Min Machines Accessed 2 | . . . 2 . Terminals . | . . . . . Fabricators . | . . . . . Repair Stations . | . . . . . Recycling Units . | . . . . . Scanalyzers . | . . . . . Garrison Access . | . . . . . Total Hacks 10 | . . . 10 . Successful 10 | . . . 10 . Failed . | . . . . . Catastrophic . | . . . . . Database Lockouts . | . . . . . Manual 1 | . . . 1 . Terminals . | . . . . . Fabricators . | . . . . . Repair Stations . | . . . . . Recycling Units . | . . . . . Scanalyzers . | . . . . . Garrison Access . | . . . . . Terminal Hacks 10 | . . . 10 . Record 9 | . . . 9 . Proto ID Catalog 1 | . . . 1 . Fabricator Hacks . | . . . . . Repair Station Hacks . | . . . . . Recycling Unit Hacks . | . . . . . Scanalyzer . | . . . . . Garrison Access Hacks . | . . . . . Unauthorized Hacks . | . . . . . Terminals . | . . . . . Fabricators . | . . . . . Repair Stations . | . . . . . Recycling Units . | . . . . . Scanalyzers . | . . . . . Garrison Access . | . . . . . Data Cores Recovered . | . . . . . Used . | . . . . . Hacking Detections . | . . . . . Full Trace Events . | . . . . . Feedback Events . | . . . . . Feedback Blocked . | . . . . . Robot Schematics Acquired . | . . . . . Robots Built . | . . . . . Authchips . | . . . . . Time . | . . . . . Total Robot Build Rating . | . . . . . Part Schematics Acquired . | . . . . . Parts Built . | . . . . . Authchips . | . . . . . Time . | . . . . . Total Part Build Rating . | . . . . . Parts Repaired . | . . . . . Time . | . . . . . Parts Recycled . | . . . . . Recycled Matter . | . . . . . Retrieved Matter . | . . . . . Retrieved Components . | . . . . . Parts Scanalyzed . | . . . . . Part Schematics Acquired . | . . . . . Parts Damaged . | . . . . . Bothacking | -11 -10 -10 -10 -9 ------------ Run | Yrd Mat Min Exi Min Used RIF Installer . | . . . . . Robots Hacked . | . . . . . Non-combat . | . . . . . Combat . | . . . . . Robot Hacks Applied . | . . . . . Relay Couplers Released . | . . . . . Fabnet Peak Effective % . | . . . . . Robots Rewired . | . . . . . Allies Hacked . | . . . . . Hacks Repelled . | . . . . . Allies | -11 -10 -10 -10 -9 -------- Run | Yrd Mat Min Exi Min Total Allies . | . . . . . Largest Group . | . . . . . Highest-Rated Group . | . . . . . Highest-Rated Ally . | . . . . . Total Orders . | . . . . . Ally Attacks . | . . . . . Total Damage . | . . . . . Kills . | . . . . . Allies Corrupted . | . . . . . Allies Melted . | . . . . . Intel | -11 -10 -10 -10 -9 ------- Run | Yrd Mat Min Exi Min Active Infowar (turns) . | . . . . . Robot Analysis Total . | . . . . . Derelict Logs Recovered 1 | . . . . 1 Drone Launches . | . . . . . Drone Recoveries . | . . . . . Exploration | -11 -10 -10 -10 -9 ------------- Run | Yrd Mat Min Exi Min Turns Passed 1257 | 64 202 27 710 254 Spaces Moved 791 | 43 103 17 435 193 Core 12 | 12 . . . . Treads 605 | 31 103 17 435 19 Legs . | . . . . . Wheels 174 | . . . . 174 Hover . | . . . . . Flight . | . . . . . Fastest Speed 50 | 50 160 160 160 100 Average Speed 145 | 129 160 160 160 105 Slowest Speed 160 | 160 160 160 160 160 Overloaded Moves . | . . . . . Propulsion Burnouts . | . . . . . Robots Hopped . | . . . . . Potential Cave-ins . | . . . . . Cave-ins Triggered . | . . . . . Exploration Rate (%) 32 | 4 34 11 71 43 Regions Visited 4 Branch Regions 3 Pre-discovered Areas 1 | . . . . 1 Known Exits Taken . | . . . . . Unknown Exits Taken 4 | 1 1 1 1 . Scrap Searched 1 | . . . . 1 Spaces Dug . | . . . . . Terrain Destroyed 68 | . 47 . . 21 Melee . | . . . . . Projectile . | . . . . . AOE 68 | . 47 . . 21 Terrain Rammed . | . . . . . Walls Destroyed . | . . . . . Machines Disabled . | . . . . . Actions | -11 -10 -10 -10 -9 --------- Run | Yrd Mat Min Exi Min Total 860 | 52 123 17 450 218 Wait 5 | . 4 1 . . Move 787 | 42 102 16 434 193 Hop . | . . . . . Pick Up 11 | 5 4 . 2 . Fast Attach 3 | . . . 1 2 Attach 9 | 5 . . 2 2 Detach 1 | . . . 1 . Swap 3 | . 1 . 1 1 Drop 2 | . . . 2 . Fire 17 | . 12 . . 5 Melee 15 | . . . . 15 Ram . | . . . . . Kick . | . . . . . Crush . | . . . . . Escape Stasis . | . . . . . Rewire 7 | . . . 7 . Trap . | . . . . . Miscellaneous . | . . . . . Route ------- -11/Scrapyard -10/Materials -10/Mines -10/Exiles (discovered 2 exits: [*Min x2]) -9/Mines History --------- Turn | Location | Event 19 | -11/Scrapyard | Discovered new exit (range 16) 65 | -11/Scrapyard | Entered Materials 171 | -10/Materials | Met 8R-AWN 227 | -10/Materials | Discovered new exit (range 16) 267 | -10/Materials | Entered Mines 268 | -10/Mines | Followed 8R-AWN into the Mines 288 | -10/Mines | Discovered new exit (range 5) 294 | -10/Mines | Entered Exiles 311 | -10/Exiles | Build established: Mutant 317 | -10/Exiles | Discovered new exit (range 15) 336 | -10/Exiles | Welcomed by 8R-AWN 362 | -10/Exiles | Met EX-HEX 408 | -10/Exiles | Met EX-BIN 450 | -10/Exiles | Aligned with FarCom system 451 | -10/Exiles | Given EX-Vault access code 488 | -10/Exiles | Opened EX-Vault 501 | -10/Exiles | Found Field Lobotomy Kit 516 | -10/Exiles | Found Longsword +1 551 | -10/Exiles | Warned to stay clear of 0b10 Research branches 607 | -10/Exiles | Met EX-DEC 985 | -10/Exiles | Discovered new exit (range 10) 1004 | -10/Exiles | Left Exiles lab with Longsword +1 1004 | -10/Exiles | Entered Mines 1029 | -9/Mines | Met a Derelict bent on vengeance 1086 | -9/Mines | Learned location of Zion (-6) 1224 | -9/Mines | Assembled infested the area 1229 | -9/Mines | Assisted by a Guerilla fighting off Assembled 1252 | -9/Mines | Core integrity fell below 50% 1257 | -9/Mines | Core integrity fell below 20% 1258 | -9/Mines | Destroyed by as-37807 with Assembled Blade Last Messages --------------- Critical hit (Destroy). Lgt. Treads destroyed. HV Slug penetrates Wall. HV Slug penetrates Earth. K-01 Serf collects debris. The unstable cave ceiling collapses. Hcp. Matter Pod destroyed. System corrupted by crushing effect (+2). as-37807 sneak attacks. K-01 Serf destroyed. HV Slug penetrates as-47119. as-47119 suffers critical hit (Destroy). as-47119 knocked back. QF-PRB(h) system corrupted by crushing effect. Destroyed Asb. Hover Unit. as-36052 destroyed. HV Slug penetrates Wall. as-82819 destroyed. System corrupted: Matter fused (-6). QF-PRB(h) knocked back. Map ----- +----------------------------------------------------+ | | | | | | | | | | | | | | | | | | | | | | | | | ?????????????????????????????????????????????????? | | ?????????????????????????????????????????????????? | | ?????????????????????????????????????????????????? | | ?????????????????????????????????????????????????? | | ?????????????????????????????????????????????????? | | ?????????????????????????????????????????????????? | | ???????????????????????????????##????????????????? | | ??????????????????####????????# #?##?? ??????????? | | ?????????????????## ##?????? ## # ??????????? | | ????????????????## #????? a ??????????? | | ????????????????# #????# a#????????????? | | ????????????????# ###?# #?????????????? | | ????????????????## ###;#a % ##??????????????? | | ?????????????????## ###;@[% #?????????????? | | ??????????????????# a%%% #?????????????? | | ??????????????????# h a %% ;## ##?????????????? | | ??????????????????# #; #####?????????????????? | | ??????????????????# #####?????????????????????? | | ??????????????????## #????????????????????????? | | ???????????????????# #????????????????????????? | | ?????????############ #????????????????????????? | | ?????????# ##????????????????????????? | | ????####?# ##?????????????????????????? | | ???## ### ###########??????????????????????????? | | ???# ## ######???????????????????????????????? | | ???# #???????????????????????????????? | | ???## #### #?????????????####??????????????? | | ????## #??# #????????????## ##?????????????? | | ?????## #??# #?????????#### #####?????????? | | ??????# #??# #???####### ##????????? | | ??????# #?# #???# #######??? | | ??????## #?# ##### ###### ## ##?? | | ???????## ##?# #????#### #?? | | ????????#####??#*#######???????#### #?? | | ???????????????# ######???????????## ##?? | | ???????????????#= #???????????## ##??? | | ???????????????###### #???????????# #???? | | ????????????????????# ########????# ##?## | +----------------------------------------------------+ Best States ------------- Heat Dissipation 25 Energy Generation 10 Energy Capacity 250 Matter Stores 474 Matter Capacity 600 Sight Range 16 Terrain Scan Density 10 Evasion (%) 50 Recoil Reduction 2 Item Schematics ----------------- None Robot Schematics ------------------ None Fabricated ------------ Nothing Repaired ---------- Nothing Alien Tech Used ----------------- None Achievements -------------- None Challenges ------------ None Game ------ Seed SpacefoldComponentBay Manual? 0 Play Time 00:09:01 Cumulative 42.5 hours Start 2025.07.07 @ 15:29:46 End 2025.07.07 @ 15:37:03 Sessions 1 Manual Loads 0 Difficulty Rogue Special Mode None Game No. 198 Rogue 198 Adventurer 0 Explorer 0 Win Type - Total 0 Types 0/0/0/0/0/0/0/0/0/0 Lore% 32 Gallery% 25 Achievement% 22 Wizard Run 0 Options --------- Layout 2 ASCII 0 Keyboard 0 Movement Mouse Keybinds 0 Fullscreen 1 Font 24/Smallcaps Map View 50x44 Zoom Use 0% Tactical HUD 0 Map Filters NONE Filters NONE Steam 1 RUN: b5fa10b6-8083-47ce-b558-e297bd2bb056